lending/lending_fUSD_20240710
["ID","MTS","AMOUNT","RATE_DAILY","PERIOD"]
[331631929,1720594245701,-582.18935,0.00013698,2]
[331631931,1720594245713,-1997.56,0.00013698,2]
[331631932,1720594245724,-500.0,0.00013698,2]
[331631933,1720594245734,-506.3,0.00013698,2]
[331631934,1720594245744,-1760.32,0.00013698,2]
[331631935,1720594245754,-2555.88,0.00013698,2]
[331631936,1720594245764,-3098.43,0.00013698,2]
[331631937,1720594245773,-514.64,0.00013698,2]
[331631938,1720594245782,-500.0,0.00013698,2]
[331631940,1720594245793,-500.0,0.00013698,2]
[331631942,1720594245804,-500.0,0.00013698,2]
[331631944,1720594245814,-500.0,0.00013698,2]
[331631946,1720594245824,-710.0,0.00013698,2]
[331631948,1720594245836,-200.0,0.00013699,2]
[331631949,1720594245846,-200.0,0.00013699,2]
[331631951,1720594245855,-200.0,0.00013699,2]
[331631953,1720594245865,-2140.95,0.00013699,2]
[331631955,1720594245874,-500.0,0.00013699,2]
[331631957,1720594245883,-20000.0,0.00013699,2]
[331631959,1720594245892,-3986.57,0.00013699,2]
[331631961,1720594245902,-2751.0,0.00013699,2]
[331631963,1720594245912,-1005.53,0.00013699,5]
[331631966,1720594245923,-250.0,0.00013699,2]
[331631967,1720594245933,-12908.96,0.00013699,2]
[331631968,1720594245943,-220.57,0.00013699,3]
[331631969,1720594245952,-150.0,0.00013699,2]
[331631970,1720594245963,-3902.72731491,0.000137,3]
[331631971,1720594245972,-200.0,0.000137,5]
[331631972,1720594245981,-160.893093,0.00013702,2]
[331631973,1720594245990,-197.89580536,0.00013705,2]
[331631974,1720594246000,-780.41683338,0.00013705,2]
[331631975,1720594246009,-6002.86919367,0.00013705,2]
[331631976,1720594246018,-150.0,0.00013716,2]
[331631977,1720594246028,-150.0,0.00013722,2]
[331631978,1720594246037,-220.00690201,0.00013726,2]
[331631979,1720594246046,-150.0,0.00013726,2]
[331631980,1720594246057,-150.0,0.00013726,2]
[331631981,1720594246066,-209.373791,0.00013726,2]
[331631982,1720594246076,-150.0,0.00013726,2]
[331631983,1720594246086,-300.0,0.00013727,2]
[331631984,1720594246098,-12777.11077048,0.00013736,2]
[331631985,1720594246107,-220.00690201,0.00013739,2]
[331631986,1720594246116,-150.0,0.00013744,2]
[331631987,1720594246125,-150.0,0.00013746,2]
[331631988,1720594246135,-150.0,0.00013747,2]
[331631989,1720594246144,-150.0,0.00013748,2]
[331631991,1720594246289,-150.0,0.00013749,2]
[331631992,1720594246300,-254.0,0.0001375,2]
[331631993,1720594246309,-220.00690201,0.00013751,2]
[331631995,1720594246319,-631.72,0.00013752,2]
[331631997,1720594246328,-631.72,0.00013752,2]
[331631999,1720594246337,-631.72,0.00013752,2]
[331632001,1720594246346,-631.72,0.00013752,2]
[331632002,1720594246355,-5000.0,0.00013752,2]
[331632005,1720594246366,-3822.97397131,0.00013752,2]
[331632006,1720594246375,-1373.52,0.00013752,2]
[331632009,1720594246385,-1373.52,0.00013752,2]
[331632011,1720594246395,-1373.52,0.00013752,2]
[331632012,1720594246404,-1373.52,0.00013752,2]
[331632015,1720594246414,-500.0,0.00013753,2]
[331632017,1720594246426,-500.0,0.00013753,2]
[331632019,1720594246435,-500.0,0.00013753,2]
[331632021,1720594246444,-451.06080827,0.00013753,2]
[331632023,1720594246455,-263.73694715,0.00013753,2]
[331632025,1720594246465,-200.0,0.00013753,2]
[331632027,1720594246474,-500.0,0.00013753,2]
[331632029,1720594246484,-1307.14,0.00013753,2]
[331632031,1720594246494,-651.3,0.00013753,2]
[331632033,1720594246504,-500.0,0.00013753,2]
[331632035,1720594246514,-500.0,0.00013753,2]
[331632037,1720594246525,-500.0,0.00013753,2]
[331632039,1720594246535,-508.3,0.00013753,2]
[331632041,1720594246545,-500.0,0.00013753,2]
[331632043,1720594246554,-500.0,0.00013753,2]
[331632045,1720594246566,-870.51,0.00013753,2]
[331632047,1720594246575,-1308.29,0.00013753,2]
[331632048,1720594246585,-500.0,0.00013753,2]
[331632049,1720594246595,-500.0,0.00013753,2]
[331632050,1720594246606,-1024.81,0.00013753,2]
[331632051,1720594246616,-500.0,0.00013753,2]
[331632052,1720594246625,-500.0,0.00013753,2]
[331632053,1720594246635,-500.0,0.00013753,2]
[331632054,1720594246644,-1966.88,0.00013753,2]
[331632055,1720594246653,-500.0,0.00013753,2]
[331632056,1720594246663,-619.29,0.00013753,2]
[331632057,1720594246674,-727.47,0.00013753,2]
[331632058,1720594246685,-516.88,0.00013753,2]
[331632059,1720594246700,-560.85,0.00013753,2]
[331632060,1720594246709,-775.32,0.00013753,2]
[331632061,1720594246719,-500.0,0.00013753,2]
[331632062,1720594246730,-507.87,0.00013753,2]
[331632063,1720594246740,-563.4,0.00013753,2]
[331632064,1720594246749,-513.58,0.00013753,2]
[331632065,1720594246759,-500.0,0.00013753,2]
[331632066,1720594246769,-531.65041545,0.00013753,2]
[331632067,1720594246779,-797.04,0.00013753,2]
[331632068,1720594246789,-856.44,0.00013753,2]
[331632069,1720594246800,-1699.55,0.00013753,2]
[331632070,1720594246810,-736.23,0.00013753,2]
[331632071,1720594246820,-613.29,0.00013753,2]
[331632072,1720594246830,-500.0,0.00013753,2]
[331632073,1720594246841,-500.0,0.00013753,2]
[331632074,1720594246851,-500.0,0.00013753,2]
[331632075,1720594246861,-595.31,0.00013753,2]
[331632076,1720594246871,-500.0,0.00013753,2]
[331632077,1720594246881,-500.0,0.00013753,2]
[331632078,1720594246891,-816.49,0.00013753,2]
[331632079,1720594246901,-1204.81,0.00013753,2]
[331632080,1720594246910,-500.0,0.00013753,2]
[331632081,1720594246921,-500.0,0.00013753,2]
[331632082,1720594246931,-678.67,0.00013753,2]
[331632083,1720594246942,-826.96,0.00013753,2]
[331632084,1720594246952,-500.0,0.00013753,2]
[331632085,1720594246962,-500.0,0.00013753,2]
[331632086,1720594246971,-500.0,0.00013753,2]
[331632087,1720594246981,-500.0,0.00013753,2]
[331632088,1720594246992,-500.0,0.00013753,2]
[331632089,1720594247002,-800.49,0.00013753,2]
[331632090,1720594247011,-500.0,0.00013753,2]
[331632091,1720594247022,-500.0,0.00013753,2]
[331632092,1720594247032,-500.0,0.00013753,2]
[331632093,1720594247042,-500.0,0.00013753,2]
[331632094,1720594247052,-500.0,0.00013753,2]
[331632095,1720594247062,-689.52,0.00013753,2]
[331632096,1720594247072,-500.0,0.00013753,2]
[331632097,1720594247081,-507.63,0.00013753,2]
[331632098,1720594247092,-595.45,0.00013753,2]
[331632099,1720594247102,-922.94,0.00013753,2]
[331632100,1720594247111,-500.0,0.00013753,2]
[331632101,1720594247121,-696.82,0.00013753,2]
[331632102,1720594247131,-500.0,0.00013753,2]
[331632103,1720594247142,-544.33,0.00013753,2]
[331632104,1720594247152,-777.5,0.00013753,2]
[331632105,1720594247162,-1593.47,0.00013753,2]
[331632106,1720594247174,-778.13,0.00013753,2]
[331632107,1720594247186,-500.0,0.00013753,2]
[331632108,1720594247196,-500.0,0.00013753,2]
[331632109,1720594247205,-947.1,0.00013753,2]
[331632110,1720594247216,-500.93,0.00013753,2]
[331632111,1720594247225,-500.0,0.00013753,2]
[331632112,1720594247235,-500.0,0.00013753,2]
[331632113,1720594247244,-500.0,0.00013753,2]
[331632114,1720594247254,-641.3,0.00013753,2]
[331632115,1720594247263,-500.0,0.00013753,2]
[331632116,1720594247272,-690.67,0.00013753,2]
[331632117,1720594247282,-554.09559937,0.00013753,2]
[331632118,1720594247293,-500.0,0.00013753,2]
[331632119,1720594247302,-500.0,0.00013753,2]
[331632120,1720594247312,-1009.19,0.00013753,2]
[331632121,1720594247322,-500.0,0.00013753,2]
[331632122,1720594247332,-977.2,0.00013753,2]
[331632123,1720594247341,-549.62,0.00013753,2]
[331632124,1720594247351,-500.0,0.00013753,2]
[331632125,1720594247361,-500.0,0.00013753,2]
[331632126,1720594247371,-500.0,0.00013753,2]
[331632127,1720594247381,-500.0,0.00013753,2]
[331632128,1720594247390,-500.0,0.00013753,2]
[331632129,1720594247400,-500.0,0.00013753,2]
[331632130,1720594247409,-914.65,0.00013753,2]
[331632131,1720594247420,-199.90276001,0.00013753,2]
[331632132,1720594247430,-1675.91,0.00013753,2]
[331632133,1720594247438,-500.0,0.00013753,2]
[331632134,1720594247448,-500.0,0.00013753,2]
[331632135,1720594247458,-500.0,0.00013753,2]
[331632136,1720594247467,-560.97,0.00013753,2]
[331632137,1720594247476,-738.59,0.00013753,2]
[331632138,1720594247486,-527.97,0.00013753,2]
[331632139,1720594247495,-500.0,0.00013753,2]
[331632140,1720594247504,-500.0,0.00013753,2]
[331632141,1720594247514,-500.0,0.00013753,2]
[331632142,1720594247523,-500.0,0.00013753,2]
[331632143,1720594247533,-500.0,0.00013753,2]
[331632144,1720594247542,-737.47,0.00013753,2]
[331632145,1720594247551,-500.0,0.00013753,2]
[331632146,1720594247561,-500.0,0.00013753,2]
[331632147,1720594247570,-500.0,0.00013753,2]
[331632148,1720594247580,-500.0,0.00013753,2]
[331632149,1720594247589,-500.0,0.00013753,2]
[331632150,1720594247599,-500.0,0.00013753,2]
[331632151,1720594247608,-500.0,0.00013753,2]
[331632152,1720594247618,-1053.37,0.00013753,2]
[331632153,1720594247630,-321.96900938,0.00013753,2]
[331632154,1720594247639,-668.88,0.00013753,2]
[331632155,1720594247650,-500.0,0.00013753,2]
[331632156,1720594247660,-768.49,0.00013753,2]
[331632157,1720594247672,-500.0,0.00013753,2]
[331632158,1720594247682,-805.84,0.00013753,2]
[331632159,1720594247694,-500.0,0.00013753,2]
[331632160,1720594247704,-1775.51,0.00013753,2]
[331632161,1720594247713,-500.0,0.00013753,2]
[331632162,1720594247723,-517.22,0.00013753,2]
[331632163,1720594247733,-731.63,0.00013753,2]
[331632164,1720594247743,-500.0,0.00013753,2]
[331632165,1720594247752,-1892.32,0.00013753,2]
[331632166,1720594247763,-513.26,0.00013753,2]
[331632167,1720594247773,-662.96,0.00013753,2]
[331632168,1720594247782,-500.0,0.00013753,2]
[331632169,1720594247792,-500.0,0.00013753,2]
[331632170,1720594247801,-500.0,0.00013753,2]
[331632171,1720594247811,-500.0,0.00013753,2]
[331632172,1720594247821,-500.0,0.00013753,2]
[331632173,1720594247831,-1345.54,0.00013753,2]
[331632174,1720594247841,-1153.52,0.00013753,2]
[331632175,1720594247850,-500.0,0.00013753,2]
[331632176,1720594247860,-610.65,0.00013753,2]
[331632177,1720594247869,-1999.38,0.00013753,2]
[331632178,1720594247879,-500.0,0.00013753,2]
[331632179,1720594247889,-500.0,0.00013753,2]
[331632180,1720594247899,-500.0,0.00013753,2]
[331632181,1720594247909,-500.0,0.00013753,2]
[331632182,1720594247921,-595.69,0.00013753,2]
[331632183,1720594247931,-500.0,0.00013753,2]
[331632184,1720594247941,-1502.24,0.00013753,2]
[331632185,1720594247952,-500.0,0.00013753,2]
[331632186,1720594247962,-500.0,0.00013753,2]
[331632187,1720594247971,-500.0,0.00013753,2]
[331632188,1720594247981,-996.07,0.00013753,2]
[331632189,1720594247990,-500.0,0.00013753,2]
[331632190,1720594247999,-500.0,0.00013753,2]
[331632191,1720594248008,-500.0,0.00013753,2]
[331632192,1720594248018,-1290.95,0.00013753,2]
[331632193,1720594248027,-500.0,0.00013753,2]
[331632194,1720594248036,-796.63,0.00013753,2]
[331632195,1720594248045,-737.55,0.00013753,2]
[331632196,1720594248054,-1184.38,0.00013753,2]
[331632197,1720594248063,-500.0,0.00013753,2]
[331632198,1720594248073,-697.27,0.00013753,2]
[331632199,1720594248083,-512.57,0.00013753,2]
[331632200,1720594248093,-500.0,0.00013753,2]
[331632201,1720594248102,-823.5,0.00013753,2]
[331632202,1720594248111,-533.11,0.00013753,2]
[331632203,1720594248120,-500.0,0.00013753,2]
[331632204,1720594248130,-500.0,0.00013753,2]
[331632205,1720594248139,-1129.72,0.00013753,2]
[331632206,1720594248148,-500.0,0.00013753,2]
[331632207,1720594248158,-500.0,0.00013753,2]
[331632208,1720594248170,-500.0,0.00013753,2]
[331632209,1720594248180,-500.0,0.00013753,2]
[331632210,1720594248191,-1082.75,0.00013753,2]
[331632211,1720594248200,-575.19,0.00013753,2]
[331632212,1720594248209,-500.0,0.00013753,2]
[331632213,1720594248219,-562.61,0.00013753,2]
[331632214,1720594248228,-500.0,0.00013753,2]
[331632215,1720594248238,-500.0,0.00013753,2]
[331632216,1720594248246,-587.8,0.00013753,2]
[331632217,1720594248255,-500.0,0.00013753,2]
[331632218,1720594248265,-500.0,0.00013753,2]
[331632219,1720594248274,-656.9,0.00013753,2]
[331632220,1720594248283,-1288.81,0.00013753,2]
[331632221,1720594248292,-500.0,0.00013753,2]
[331632222,1720594248302,-500.0,0.00013753,2]
[331632223,1720594248312,-500.0,0.00013753,2]
[331632224,1720594248321,-1038.53,0.00013753,2]
[331632225,1720594248330,-887.82,0.00013753,2]
[331632226,1720594248339,-1322.73,0.00013753,2]
[331632227,1720594248349,-500.0,0.00013753,2]
[331632228,1720594248358,-500.0,0.00013753,2]
[331632229,1720594248367,-643.45,0.00013753,2]
[331632230,1720594248376,-500.0,0.00013753,2]
[331632231,1720594248385,-500.0,0.00013753,2]
[331632232,1720594248394,-500.0,0.00013753,2]
[331632233,1720594248404,-500.0,0.00013753,2]
[331632234,1720594248746,-711.12,0.00013753,2]
[331632235,1720594248756,-1542.33,0.00013753,2]
[331632236,1720594248765,-919.02,0.00013753,2]
[331632237,1720594248774,-1080.28,0.00013753,2]
[331632238,1720594248784,-588.8,0.00013753,2]
[331632239,1720594248794,-500.0,0.00013753,2]
[331632240,1720594248803,-500.0,0.00013753,2]
[331632241,1720594248812,-500.0,0.00013753,2]
[331632242,1720594248821,-1156.69,0.00013753,2]
[331632243,1720594248832,-500.0,0.00013753,2]
[331632244,1720594248842,-1145.7,0.00013753,2]
[331632245,1720594248851,-500.0,0.00013753,2]
[331632246,1720594248861,-716.99,0.00013753,2]
[331632247,1720594248870,-500.0,0.00013753,2]
[331632248,1720594248879,-729.09,0.00013753,2]
[331632249,1720594248890,-530.03,0.00013753,2]
[331632250,1720594248901,-500.0,0.00013753,2]
[331632251,1720594248911,-500.0,0.00013753,2]
[331632252,1720594248924,-500.0,0.00013753,2]
[331632253,1720594248934,-519.9,0.00013753,2]
[331632254,1720594248945,-500.0,0.00013753,2]
[331632255,1720594248954,-500.0,0.00013753,2]
[331632256,1720594248964,-500.0,0.00013753,2]
[331632257,1720594248972,-705.03,0.00013753,2]
[331632258,1720594248981,-484.49781724,0.00013753,2]
[331632259,1720594248991,-1142.86,0.00013753,2]
[331632260,1720594249000,-500.0,0.00013753,2]
[331632261,1720594249009,-500.0,0.00013753,2]
[331632262,1720594249018,-1369.32,0.00013753,2]
[331632263,1720594249028,-500.0,0.00013753,2]
[331632264,1720594249036,-967.24,0.00013753,2]
[331632265,1720594249046,-936.06,0.00013753,2]
[331632266,1720594249055,-607.3,0.00013753,2]
[331632267,1720594249064,-938.94,0.00013753,2]
[331632268,1720594249072,-500.0,0.00013753,2]
[331632269,1720594249081,-500.0,0.00013753,2]
[331632270,1720594249090,-500.0,0.00013753,2]
[331632271,1720594249099,-785.8,0.00013753,2]
[331632272,1720594249108,-1068.85,0.00013753,2]
[331632273,1720594249117,-1263.04,0.00013753,2]
[331632274,1720594249126,-1024.12,0.00013753,2]
[331632275,1720594249135,-500.0,0.00013753,2]
[331632276,1720594249143,-617.93,0.00013753,2]
[331632277,1720594249153,-1679.39,0.00013753,2]
[331632278,1720594249162,-732.39,0.00013753,2]
[331632279,1720594249173,-500.0,0.00013753,2]
[331632280,1720594249182,-1017.25,0.00013753,2]
[331632281,1720594249191,-500.0,0.00013753,2]
[331632282,1720594249200,-1608.12,0.00013753,2]
[331632283,1720594249210,-541.62,0.00013753,2]
[331632284,1720594249219,-1182.96,0.00013753,2]
[331632285,1720594249228,-1643.56,0.00013753,2]
[331632286,1720594249239,-500.0,0.00013753,2]
[331632287,1720594249248,-1542.5,0.00013753,2]
[331632288,1720594249257,-1235.49,0.00013753,2]
[331632289,1720594249267,-709.21,0.00013753,2]
[331632290,1720594249276,-538.49669756,0.00013753,2]
[331632291,1720594249286,-2150.36,0.00013753,2]
[331632292,1720594249296,-500.0,0.00013753,2]
[331632293,1720594249306,-521.66,0.00013753,2]
[331632294,1720594249316,-1017.25,0.00013753,2]
[331632295,1720594249325,-1382.69,0.00013753,2]
[331632296,1720594249334,-500.0,0.00013753,2]
[331632297,1720594249345,-500.0,0.00013753,2]
[331632298,1720594249355,-527.83,0.00013753,2]
[331632299,1720594249365,-1179.86,0.00013753,2]
[331632300,1720594249374,-1420.17,0.00013753,2]
[331632301,1720594249384,-500.0,0.00013753,2]
[331632302,1720594249393,-576.06,0.00013753,2]
[331632303,1720594249404,-2271.04,0.00013753,2]
[331632304,1720594249413,-500.0,0.00013753,2]
[331632305,1720594249424,-150.0,0.00013753,2]
[331632306,1720594249433,-556.63,0.00013753,2]
[331632307,1720594249442,-500.0,0.00013753,2]
[331632308,1720594249452,-555.74,0.00013753,2]
[331632309,1720594249461,-503.85,0.00013753,2]
[331632310,1720594249471,-633.42,0.00013753,2]
[331632311,1720594249480,-1513.62,0.00013753,2]
[331632312,1720594249490,-1000.0,0.00013753,2]
[331632313,1720594249500,-1640.61,0.00013753,2]
[331632314,1720594249509,-500.0,0.00013753,2]
[331632315,1720594249518,-500.0,0.00013753,2]
[331632316,1720594249528,-500.0,0.00013753,2]
[331632317,1720594249537,-1440.57,0.00013753,2]
[331632318,1720594249546,-997.28,0.00013753,2]
[331632319,1720594249556,-582.63,0.00013753,2]
[331632320,1720594249566,-564.02,0.00013753,2]
[331632321,1720594249575,-1485.38,0.00013753,2]
[331632322,1720594249584,-500.0,0.00013753,2]
[331632323,1720594249595,-1255.76,0.00013753,2]
[331632324,1720594249604,-500.0,0.00013753,2]
[331632325,1720594249614,-500.0,0.00013753,2]
[331632326,1720594249623,-613.45,0.00013753,2]
[331632327,1720594249632,-500.0,0.00013753,2]
[331632328,1720594249642,-500.0,0.00013753,2]
[331632329,1720594249652,-879.12,0.00013753,2]
[331632330,1720594249662,-500.0,0.00013753,2]
[331632331,1720594249674,-950.65,0.00013753,2]
[331632332,1720594249683,-500.0,0.00013753,2]
[331632333,1720594249693,-1429.85,0.00013753,2]
[331632334,1720594249703,-500.0,0.00013753,2]
[331632335,1720594249712,-500.0,0.00013753,2]
[331632336,1720594249722,-500.0,0.00013753,2]
[331632337,1720594249732,-697.89,0.00013753,2]
[331632338,1720594249743,-500.0,0.00013753,2]
[331632339,1720594249753,-500.0,0.00013753,2]
[331632340,1720594249763,-500.0,0.00013753,2]
[331632341,1720594249773,-1637.45,0.00013753,2]
[331632342,1720594249783,-1300.49,0.00013753,2]
[331632343,1720594249793,-1057.84,0.00013753,2]
[331632344,1720594249803,-1546.22,0.00013753,2]
[331632345,1720594249813,-686.73,0.00013753,2]
[331632346,1720594249824,-500.0,0.00013753,2]
[331632347,1720594249836,-710.3,0.00013753,2]
[331632348,1720594249846,-714.86,0.00013753,2]
[331632349,1720594249856,-1038.82,0.00013753,2]
[331632350,1720594249866,-529.52,0.00013753,2]
[331632351,1720594249876,-2175.42,0.00013753,2]
[331632352,1720594249886,-522.01,0.00013753,2]
[331632353,1720594249895,-623.25,0.00013753,2]
[331632354,1720594249906,-1351.97,0.00013753,2]
[331632355,1720594249916,-500.0,0.00013753,2]
[331632356,1720594249927,-500.0,0.00013753,2]
[331632357,1720594249938,-523.74,0.00013753,2]
[331632358,1720594249949,-500.0,0.00013753,2]
[331632359,1720594249959,-500.0,0.00013753,2]
[331632360,1720594249968,-500.0,0.00013753,2]
[331632361,1720594249978,-544.72,0.00013753,2]
[331632362,1720594249987,-500.0,0.00013753,2]
[331632363,1720594249997,-1257.65,0.00013753,2]
[331632364,1720594250006,-1125.44,0.00013753,2]
[331632365,1720594250015,-500.0,0.00013753,2]
[331632366,1720594250025,-1026.48,0.00013753,2]
[331632367,1720594250036,-500.0,0.00013753,2]
[331632368,1720594250046,-676.29,0.00013753,2]
[331632369,1720594250056,-799.49,0.00013753,2]
[331632370,1720594250065,-2179.88,0.00013753,2]
[331632371,1720594250075,-500.0,0.00013753,2]
[331632372,1720594250085,-500.0,0.00013753,2]
[331632373,1720594250096,-634.46,0.00013753,2]
[331632374,1720594250105,-500.0,0.00013753,2]
[331632375,1720594250115,-816.98,0.00013753,2]
[331632376,1720594250127,-1455.8,0.00013753,2]
[331632377,1720594250138,-991.42,0.00013753,2]
[331632378,1720594250147,-569.51,0.00013753,2]
[331632379,1720594250157,-1162.99,0.00013753,2]
[331632380,1720594250167,-500.0,0.00013753,2]
[331632381,1720594250179,-500.0,0.00013753,2]
[331632382,1720594250188,-1163.03,0.00013753,2]
[331632383,1720594250197,-500.0,0.00013753,2]
[331632384,1720594250206,-500.0,0.00013753,2]
[331632385,1720594250215,-2686.32,0.00013753,2]
[331632386,1720594250225,-525.95,0.00013753,2]
[331632387,1720594250235,-590.6,0.00013753,2]
[331632388,1720594250246,-1631.02,0.00013753,2]
[331632389,1720594250255,-1095.69,0.00013753,2]
[331632390,1720594250266,-500.0,0.00013753,2]
[331632391,1720594250276,-500.0,0.00013753,2]
[331632392,1720594250286,-1622.05,0.00013753,2]
[331632393,1720594250296,-1735.43,0.00013753,2]
[331632394,1720594250306,-500.0,0.00013753,2]
[331632395,1720594250316,-1194.27,0.00013753,2]
[331632396,1720594250327,-500.0,0.00013753,2]
[331632397,1720594250338,-500.0,0.00013753,2]
[331632398,1720594250348,-2613.06,0.00013753,2]
[331632399,1720594250359,-500.0,0.00013753,2]
[331632400,1720594250368,-906.86,0.00013753,2]
[331632401,1720594250377,-678.18,0.00013753,2]
[331632402,1720594250388,-1952.38,0.00013753,2]
[331632403,1720594250398,-500.0,0.00013753,2]
[331632404,1720594250408,-500.0,0.00013753,2]
[331632405,1720594250417,-500.0,0.00013753,2]
[331632406,1720594250429,-500.0,0.00013753,2]
[331632407,1720594250438,-811.16,0.00013753,2]
[331632408,1720594250447,-939.0,0.00013753,2]
[331632409,1720594250456,-1072.15,0.00013753,2]
[331632410,1720594250467,-500.0,0.00013753,2]
[331632411,1720594250477,-1678.42,0.00013753,2]
[331632412,1720594250486,-500.0,0.00013753,2]
[331632413,1720594250495,-511.21,0.00013753,2]
[331632414,1720594250504,-500.0,0.00013753,2]
[331632415,1720594250514,-500.0,0.00013753,2]
[331632416,1720594250523,-506.06,0.00013753,2]
[331632417,1720594250533,-500.0,0.00013753,2]
[331632418,1720594250542,-1221.3,0.00013753,2]
[331632419,1720594250551,-830.61,0.00013753,2]
[331632420,1720594250560,-500.0,0.00013753,2]
[331632421,1720594250570,-500.0,0.00013753,2]
[331632422,1720594250579,-568.98,0.00013753,2]
[331632423,1720594250588,-579.23,0.00013753,2]
[331632424,1720594250598,-1798.51,0.00013753,2]
[331632425,1720594250607,-1171.97,0.00013753,2]
[331632426,1720594250616,-644.8,0.00013753,2]
[331632427,1720594250625,-500.0,0.00013753,2]
[331632428,1720594250634,-1102.41,0.00013753,2]
[331632429,1720594250643,-500.0,0.00013753,2]
[331632430,1720594250652,-500.0,0.00013753,2]
[331632431,1720594250662,-1065.22,0.00013753,2]
[331632432,1720594250674,-792.64,0.00013753,2]
[331632433,1720594250683,-500.0,0.00013753,2]
[331632434,1720594250694,-500.0,0.00013753,2]
[331632435,1720594250703,-500.0,0.00013753,2]
[331632436,1720594250713,-500.0,0.00013753,2]
[331632437,1720594250722,-734.69,0.00013753,2]
[331632438,1720594250732,-1504.52,0.00013753,2]
[331632439,1720594250741,-500.0,0.00013753,2]
[331632440,1720594250750,-500.0,0.00013753,2]
[331632441,1720594250760,-500.0,0.00013753,2]
[331632442,1720594250769,-1350.39,0.00013753,2]
[331632443,1720594250778,-500.0,0.00013753,2]
[331632444,1720594250788,-2066.31,0.00013753,2]
[331632445,1720594250797,-739.23,0.00013753,2]
[331632446,1720594250806,-500.0,0.00013753,2]
[331632447,1720594250816,-500.0,0.00013753,2]
[331632448,1720594250826,-489.71680039,0.00013753,2]
[331632449,1720594250835,-508.64,0.00013753,2]
[331632450,1720594250845,-500.0,0.00013753,2]
[331632451,1720594250854,-586.22289482,0.00013753,2]
[331632452,1720594250863,-500.0,0.00013753,2]
[331632453,1720594250872,-1781.76,0.00013753,2]
[331632454,1720594250882,-1528.2,0.00013753,2]
[331632455,1720594250892,-500.0,0.00013753,2]
[331632456,1720594250901,-1631.88,0.00013753,2]
[331632457,1720594250910,-500.0,0.00013753,2]
[331632458,1720594250920,-639.54,0.00013753,2]
[331632459,1720594250931,-573.73,0.00013753,2]
[331632460,1720594250942,-500.0,0.00013753,2]
[331632461,1720594250951,-500.0,0.00013753,2]
[331632462,1720594250960,-1590.72,0.00013753,2]
[331632463,1720594250969,-605.02,0.00013753,2]
[331632464,1720594250978,-1051.37,0.00013753,2]
[331632465,1720594250988,-500.0,0.00013753,2]
[331632466,1720594250997,-500.0,0.00013753,2]
[331632467,1720594251006,-500.0,0.00013753,2]
[331632468,1720594251015,-1928.69,0.00013753,2]
[331632469,1720594251025,-1016.12,0.00013753,2]
[331632470,1720594251034,-500.0,0.00013753,2]
[331632471,1720594251044,-2600.9,0.00013753,2]